fUST/lending_fUST_20260128
["ID","MTS","AMOUNT","RATE_DAILY","PERIOD"]
[403830005,1769572238232,-500.0,0.00011215,2]
[403830006,1769572238242,-500.0,0.00011215,2]
[403830007,1769572238252,-500.0,0.00011215,2]
[403830008,1769572238262,-500.0,0.00011215,2]
[403830009,1769572238271,-500.0,0.00011215,2]
[403830010,1769572238281,-560.26939243,0.00011215,2]
[403830011,1769572238290,-500.0,0.00011215,2]
[403830012,1769572238299,-500.0,0.00011215,2]
[403830013,1769572238309,-500.0,0.00011215,2]
[403830014,1769572238318,-25886.33752291,0.00011216,2]
[403830058,1769572240071,-576.35107221,0.00011216,2]
[403830061,1769572240082,-575.02828078,0.00011216,2]
[403830077,1769572240229,-3e-08,0.00011216,2]
[403830079,1769572240240,-1023.59729684,0.00011216,2]
[403830494,1769572244524,-5000.0,0.00011104,2]
[403830496,1769572244532,-2146.01971257,0.00011216,2]
[403830498,1769572244543,-9449.99517593,0.00011216,2]
[403830660,1769572246040,-1155.11275136,0.00011216,2]
[403830667,1769572246095,-11955.64970784,0.00011216,2]
[403830730,1769572321994,159.26088846,0.00034864,120]
[403830731,1769572322030,215.26760386,0.00034864,120]
[403830732,1769572322376,159.26088846,0.00034864,120]
[403830733,1769572322418,215.26760386,0.00034864,120]
[403830734,1769572322755,159.26088846,0.00034864,120]
[403830735,1769572322818,215.26760386,0.00034864,120]
[403830736,1769572335756,500.0,0.00034864,120]
[403830737,1769572385134,500.0,0.00034864,120]
[403830738,1769572385380,500.0,0.00034864,120]
[403830739,1769572385612,352.24,0.00034864,120]
[403830745,1769572410005,500.0,0.00034864,120]
[403830746,1769572410283,562.91552821,0.00034864,120]
[403830747,1769572416933,500.0,0.00034864,120]
[403830748,1769572417301,500.0,0.00034864,120]
[403830749,1769572417495,324.93913822,0.00034864,120]
[403830750,1769572441314,265.24067142,0.00034864,120]
[403830751,1769572456872,500.0,0.00034855,120]
[403830752,1769572457121,597.17447446,0.00034855,120]
[403830753,1769572494377,10000.0,9.974e-05,2]
[403830754,1769572509186,0.01,9.974e-05,2]
[403830755,1769572509206,3380.66,9.974e-05,2]
[403830757,1769572535899,500.0,0.00034855,120]
[403830758,1769572536135,500.0,0.00034855,120]
[403830759,1769572551581,500.0,0.00034855,120]
[403830760,1769572561964,4849.78986714,9.974e-05,2]
[403830761,1769572635278,500.0,0.00034855,120]
[403830762,1769572635546,500.0,0.00034855,120]
[403830763,1769572636170,500.0,0.00034855,120]
[403830764,1769572636434,500.0,0.00034855,120]
[403830765,1769572636690,500.0,0.00034855,120]
[403830766,1769572636960,500.0,0.00034855,120]
[403830767,1769572637208,500.0,0.00034855,120]
[403830768,1769572637458,500.0,0.00034855,120]
[403830769,1769572637718,500.0,0.00034855,120]
[403830770,1769572637970,500.0,0.00034855,120]
[403830771,1769572638215,500.0,0.00034855,120]
[403830772,1769572638817,500.0,0.00034855,120]
[403830773,1769572639062,500.0,0.00034855,120]
[403830774,1769572639304,500.0,0.00034855,120]
[403830775,1769572639560,500.0,0.00034855,120]
[403830776,1769572639792,500.0,0.00034855,120]
[403830777,1769572640044,500.0,0.00034855,120]
[403830778,1769572640288,500.0,0.00034855,120]
[403830779,1769572640541,500.0,0.00034855,120]
[403830780,1769572640774,500.0,0.00034855,120]
[403830781,1769572641016,500.0,0.00034855,120]
[403830782,1769572641255,500.0,0.00034855,120]
[403830783,1769572641498,500.0,0.00034855,120]
[403830784,1769572641732,499.93597227,0.00034855,120]
[403830785,1769572651762,1000.0,0.000301,120]
[403830786,1769572818421,-195.95,0.0001,2]
[403830787,1769572833586,-170.4917745,0.00010158,2]
[403830788,1769572835026,9659.026451,0.00010158,2]
[403830789,1769572835048,10000.01,0.00010158,2]
[403830790,1769572835069,10000.01,0.00010158,2]
[403830791,1769572835090,7656.4000878,0.00010158,2]
[403830793,1769572920134,-5000.0,0.00010558,7]
[403830794,1769573042164,-854.75668964,0.00010347,2]
[403830795,1769573044036,-183.06853102,0.00010347,2]
[403830796,1769573046712,-473.67259177,0.00010347,2]
[403830797,1769573048266,-316.88706741,0.00010347,2]
[403830798,1769573052224,-178.58301554,0.00010347,2]
[403830799,1769573054904,-300.0,0.00010347,2]
[403830800,1769573058099,-428.31085993,0.00010347,2]
[403830801,1769573059679,-272.54134027,0.00010347,2]
[403830802,1769573061771,-200.90478433,9.966e-05,2]
[403830803,1769573063253,-351.80413804,9.966e-05,2]
[403830804,1769573066657,-380.83362955,9.966e-05,2]
[403830805,1769573068258,-526.825108,9.966e-05,2]
[403830806,1769573069794,-281.83220911,9.966e-05,2]
[403830807,1769573073023,-522.6486575,9.966e-05,2]
[403830808,1769573075384,-243.40344553,9.966e-05,2]
[403830809,1769573076948,-184.43475781,9.966e-05,2]
[403830810,1769573078501,-500.0,9.965e-05,2]
[403830811,1769573078529,-500.0,9.965e-05,2]
[403830812,1769573078557,-500.0,9.965e-05,2]
[403830813,1769573078586,-463.00352388,9.965e-05,2]
[403830814,1769573078614,-500.0,9.965e-05,2]
[403830815,1769573078642,-500.0,9.965e-05,2]
[403830816,1769573078671,-500.0,9.965e-05,2]
[403830817,1769573078699,-500.0,9.965e-05,2]
[403830818,1769573078727,-500.0,9.965e-05,2]
[403830819,1769573078756,-500.0,9.965e-05,2]
[403830820,1769573078868,-500.0,9.965e-05,2]
[403830821,1769573078897,-500.0,9.965e-05,2]
[403830822,1769573078925,-500.0,9.965e-05,2]
[403830823,1769573078955,-500.0,9.965e-05,2]
[403830824,1769573078989,-500.0,9.965e-05,2]
[403830825,1769573079018,-500.0,9.965e-05,2]
[403830826,1769573079047,-500.0,9.965e-05,2]
[403830827,1769573079077,-241.69402617,9.965e-05,2]
[403830828,1769573079105,-500.0,9.965e-05,2]
[403830829,1769573079133,-500.0,9.965e-05,2]
[403830830,1769573079161,-16.62194766,9.965e-05,2]
[403830831,1769573079486,-232.04407171,9.965e-05,2]
[403830832,1769573081402,-251.33398063,9.965e-05,2]
[403830833,1769573081430,-500.0,9.965e-05,2]
[403830834,1769573081460,-500.0,9.965e-05,2]
[403830835,1769573081489,-500.0,9.965e-05,2]
[403830836,1769573081518,-500.0,9.965e-05,2]
[403830837,1769573081547,-500.0,9.965e-05,2]
[403830838,1769573081574,-500.0,9.965e-05,2]
[403830839,1769573081603,-500.0,9.965e-05,2]
[403830840,1769573081629,-500.0,9.965e-05,2]
[403830841,1769573081658,-517.80606148,9.965e-05,2]
[403830842,1769573081780,-500.0,9.965e-05,2]
[403830843,1769573081917,-500.0,9.965e-05,2]
[403830844,1769573081948,-500.0,9.965e-05,2]
[403830845,1769573081976,-500.0,9.965e-05,2]
[403830846,1769573082006,-553.88197036,9.965e-05,2]
[403830847,1769573082035,-500.0,9.965e-05,2]
[403830848,1769573082063,-500.0,9.965e-05,2]
[403830849,1769573082090,-500.0,9.965e-05,2]
[403830850,1769573082118,-500.0,9.965e-05,2]
[403830851,1769573082147,-392.24605928,9.965e-05,2]
[403830852,1769573082248,-107.75394072,9.965e-05,2]
[403830853,1769573082270,-369.98801637,9.965e-05,2]
[403830854,1769573083802,-130.01198363,9.965e-05,2]
[403830855,1769573083824,-170.79160711,9.965e-05,2]
[403830856,1769573084462,-329.20839289,9.965e-05,2]
[403830857,1769573084492,-500.0,9.965e-05,2]
[403830858,1769573084523,-500.0,9.965e-05,2]
[403830859,1769573085379,-401.22966352,9.966e-05,2]
[403830860,1769573087089,500.0,0.00034866,120]
[403830861,1769573087326,500.01000018,0.00034866,120]
[403830862,1769573090452,-326.4860283,9.966e-05,2]
[403830863,1769573090932,-981.74843928,9.966e-05,2]
[403830864,1769573093688,-10000.01,9.966e-05,2]
[403830865,1769573093933,-10000.01,9.966e-05,2]
[403830866,1769573094460,-285.32908462,9.966e-05,2]
[403830867,1769573096859,-4235.36480669,9.966e-05,2]
[403830868,1769573096884,-1529.28038662,9.966e-05,2]
[403830869,1769573097601,-154.10596508,0.00010165,2]
[403830870,1769573099805,-145.89403492,0.00010165,2]
[403830871,1769573099833,-6.26007939,0.00010165,2]
[403830872,1769573103577,-181.33758206,0.00010164,2]
[403830873,1769573105059,-118.66241794,0.00010164,2]
[403830874,1769573105081,-55.4073459,0.00010164,2]
[403830875,1769573106746,-213.44460596,0.00010164,2]
[403830876,1769573109990,-31.14804814,0.00010164,2]
[403830877,1769573110015,-261.68546323,0.00010164,2]
[403830878,1769573112492,-271.82427108,0.00010164,2]
[403830879,1769573116032,-167.10598031,0.00010164,2]
[403830880,1769573118724,-284.31209463,0.00010164,2]
[403830881,1769573122583,-193.94760437,0.00010164,2]
[403830882,1769573127624,-21.12458638,0.00010164,2]
[403830883,1769573127645,-213.44735382,0.00010164,2]
[403830884,1769573131086,-332.89401969,0.00010062,2]
[403830885,1769573135584,-500.0,0.00010062,2]
[403830886,1769573139972,-279.42094264,0.00010062,2]
[403830887,1769573143791,-1678.04604519,0.00010062,2]
[403830888,1769573143818,-86.55264618,0.00010164,2]
[403830889,1769573143844,-155.0,0.00010164,2]
[403830890,1769573150247,500.0,0.00034866,120]
[403830891,1769573150498,214.09541494,0.00034866,120]
[403830892,1769573159721,5000.0,0.00010165,2]
[403830893,1769573162327,300.0,0.00010164,2]
[403830894,1769573162923,300.0,0.00010164,2]
[403830895,1769573167768,300.0,0.00010164,2]
[403830896,1769573182207,260.81261726,0.00010165,2]
[403830897,1769573182230,3114.94619947,0.00010165,2]
[403830898,1769573222281,300.0,0.00010164,2]
[403830899,1769573232923,5000.0,0.00010165,2]
[403830904,1769573266977,292.9745396,9.607e-05,2]
[403830905,1769573282844,185.09,2.997e-05,2]
[403830909,1769573406584,167.247086,9.289e-05,2]
[403830910,1769573406838,167.247086,9.289e-05,120]
[403830914,1769573407656,-560.0,0.00010014,2]
[403830916,1769573427274,-292.4145185,0.00010014,2]
[403830943,1769573431890,-1282.66666667,0.00010063,2]
[403830946,1769573431944,-3717.33333333,0.00010063,2]
[403830947,1769573431955,-300.0,0.00010163,2]
[403830948,1769573431966,-300.0,0.00010163,2]
[403830949,1769573431976,-300.0,0.00010164,2]
[403830950,1769573431986,-50000.0,0.00010165,2]
[403830951,1769573431997,-293.73992061,0.00010165,2]
[403830952,1769573432008,-300.0,0.00010165,2]
[403830953,1769573432019,-300.0,0.00010165,2]
[403830954,1769573432030,-300.0,0.00010165,2]
[403830955,1769573432039,-300.0,0.00010165,2]
[403830956,1769573432050,-300.0,0.00010165,2]
[403830957,1769573432059,-300.0,0.00010165,2]
[403830958,1769573432069,-300.0,0.00010165,2]
[403830959,1769573432078,-300.0,0.00010165,2]
[403830960,1769573432088,-300.0,0.00010165,2]
[403830961,1769573432099,-300.0,0.00010165,2]
[403830962,1769573432108,-300.0,0.00010165,2]
[403830963,1769573432117,-300.0,0.00010165,2]
[403830964,1769573432126,-300.0,0.00010165,2]
[403830965,1769573432137,-600.0,0.00010367,2]
[403830966,1769573432146,-614.732,0.00010992,2]
[403830967,1769573432155,-180.27877028,0.00011079,2]
[403830968,1769573432165,-500.0,0.00011113,2]
[403830969,1769573432174,-176.40403483,0.00011113,2]
[403830970,1769573432182,-500.0,0.00011113,2]
[403830971,1769573432191,-500.0,0.00011113,2]
[403830972,1769573432200,-500.0,0.00011113,2]
[403830973,1769573432209,-500.0,0.00011113,2]
[403830974,1769573432218,-172.65355226,0.00011113,2]
[403830975,1769573432228,-500.0,0.00011113,2]
[403830976,1769573432237,-249.07711402,0.00011113,2]
[403830977,1769573432247,-355.53787407,0.00011113,2]
[403830978,1769573432256,-32767.69417333,0.00011114,2]
[403830982,1769573438008,-320.71351522,0.00010164,2]
[403830983,1769573438017,-677.51601949,0.00011114,2]
[403830984,1769573438029,-381.18565502,0.00011114,2]
[403830985,1769573438041,-1089.14047232,0.00011114,2]
[403830986,1769573438063,-212335.29455472,0.00011114,2]
[403830987,1769573440642,-3e-08,0.00011114,2]
[403830988,1769573440653,-269.247383,0.00011114,2]
[403831492,1769573446208,-15787.12716928,0.00011114,2]
[403831735,1769573525949,500.0,0.00034866,120]
[403831736,1769573586736,1049.0,0.00030136,120]
[403831738,1769573605951,500.0,0.00034866,120]
[403831739,1769573608888,500.378734,0.00034866,120]
[403831740,1769573618442,500.0,0.00034866,120]
[403831741,1769573620078,619.77,0.00034866,120]
[403831742,1769573718936,-181.92866928,0.00010164,2]
[403831743,1769573718966,-307.21756307,0.00010174,2]
[403831744,1769573718994,-300.0,0.00010185,2]
[403831745,1769573719020,-1775.7244729,0.0001024,2]
[403831746,1769573719047,-207.90929385,0.00011014,2]
[403831747,1769573719073,-300.0,0.00011113,2]
[403831748,1769573719099,-300.0,0.00011113,2]
[403831749,1769573719125,-300.0,0.00011113,2]
[403831750,1769573719153,-1200.0,0.00011113,2]
[403831751,1769573733840,500.0,0.00034849,120]
[403831752,1769573734664,224.49946066,0.00011113,2]
[403831753,1769573743169,29.95054114,0.00011107,2]
[403831754,1769573743193,212.65439807,0.00011107,2]
[403831755,1769573838056,5000.0,0.00011114,2]
[403831756,1769573860900,4787.35560193,0.00011114,2]
[403831757,1769573860926,212.64439807,0.00011114,2]
[403831758,1769573883903,5000.0,0.00011114,2]
[403831759,1769573929994,386.09861188,0.00034849,120]
[403831760,1769573997648,500.0,0.00034851,120]
[403831761,1769573997895,500.00999918,0.00034851,120]
[403831762,1769574005739,-158.63,0.0001,2]
[403831763,1769574005768,-560.0,0.0001,2]
[403831764,1769574016135,286.10771211,0.00034851,120]
[403831765,1769574039681,500.0,0.00034851,120]
[403831766,1769574238694,219.79682801,0.00034851,120]
[403831767,1769574240561,500.0,0.00034851,120]
[403831770,1769574289386,-381.7223317,0.00010682,2]
[403831771,1769574289415,-301.07321181,0.00010842,2]
[403831772,1769574289444,-586.677,0.00010892,2]
[403831773,1769574298684,5000.0,0.00011014,2]
[403831774,1769574301675,286.0,0.00011013,2]
[403831775,1769574322168,2175.06491298,0.00011014,2]
[403831776,1769574322193,2824.93508702,0.00011014,2]
[403831777,1769574344930,5000.0,0.00011014,2]
[403831778,1769574364303,-800.0,0.00010983,2]
[403831779,1769574367915,5000.0,0.00011014,2]
[403831782,1769574505274,-1930.43881781,0.0001,2]
[403831783,1769574505301,-289.59992971,0.0001,2]
[403831784,1769574509663,1000.0,0.0001,2]
[403831786,1769574516257,4559.93250496,0.0001,2]
[403831787,1769574516279,10000.01,0.0001,2]
[403831788,1769574516300,2285.39022115,0.0001,2]
[403831789,1769574516814,784.13706818,0.0001,2]
[403831790,1769574521251,-500.191895,6.546e-05,2]
[403831793,1769574606223,500.0,0.00034851,120]
[403831794,1769574606613,500.0,0.00034851,120]
[403831795,1769574606693,500.0,0.00034851,120]
[403831796,1769574606975,500.0,0.00034851,120]
[403831797,1769574607221,500.0,0.00034851,120]
[403831798,1769574607453,500.0,0.00034851,120]
[403831799,1769574607801,500.0,0.00034851,120]
[403831800,1769574607939,500.0,0.00034851,120]
[403831801,1769574608192,500.0,0.00034851,120]
[403831802,1769574608436,500.0,0.00034851,120]
[403831803,1769574608679,219.903845,0.00034851,120]
[403831804,1769574627542,-160.23,0.0001,2]
[403831805,1769574627562,-2839.77,0.00010407,2]
[403831830,1769574632040,-2160.23,0.00010407,2]
[403831831,1769574632050,-271.68334718,0.00010512,2]
[403831832,1769574632095,-710.33255992,0.00010512,2]
[403831833,1769574632106,-281.39091315,0.00010512,2]
[403831848,1769574637235,-3736.59317975,0.00010512,2]
[403831849,1769574637262,-425.2323895,0.00010618,2]
[403831850,1769574637291,-174.43032578,0.00010962,2]
[403831851,1769574637319,-151.0,0.00011014,2]
[403831852,1769574637346,-151.0,0.00011014,2]
[403831853,1769574637376,-151.0,0.00011014,2]
[403831854,1769574637406,-151.0,0.00011014,2]
[403831855,1769574637625,-151.0,0.00011014,2]
[403831856,1769574637652,-151.0,0.00011014,2]
[403831859,1769574638186,-32815.0264008,0.00011014,2]
[403831860,1769574638197,-6589.73407865,0.00011014,2]
[403831861,1769574638211,-481.07178309,0.00011014,2]
[403831862,1769574638247,-4222.99935706,0.00011014,2]
[403831863,1769574638263,-877.00680371,0.00011014,2]
[403831864,1769574638274,-6448.03891261,0.00011014,2]
[403831865,1769574638284,-79572.06280906,0.00011014,2]
[403831914,1769574640453,-303.59,0.00011014,2]
[403832111,1769574642618,-0.01,0.00011014,2]
[403832137,1769574642819,-10000.01,0.00011014,2]
[403832152,1769574642914,-10000.01,0.00011014,2]
[403832166,1769574643021,-10000.01,0.00011014,2]
[403832179,1769574643137,-10000.01,0.00011014,2]
[403832228,1769574643606,-744.28202374,0.00011014,2]
[403832230,1769574643618,-805.66394358,0.00011014,2]
[403832507,1769574646514,-6798.34281434,0.00011014,2]
[403832539,1769574653737,305.54837568,0.00011013,2]
[403832540,1769574661969,800.0,0.00010856,2]
[403832541,1769574662073,800.0,0.00010807,2]
[403832542,1769574662159,800.0,0.00011012,2]
[403832543,1769574662202,509.90299007,0.00011013,2]
[403832544,1769574662230,385.37173134,0.00011013,2]
[403832545,1769574662256,224.8408395,0.00011013,2]
[403832546,1769574662288,500.0,0.00011013,2]
[403832547,1769574662316,500.0,0.00011013,2]
[403832548,1769574662352,500.0,0.00011013,2]
[403832549,1769574662415,500.0,0.00011013,2]
[403832550,1769574662445,500.0,0.00011013,2]
[403832551,1769574662482,500.0,0.00011013,2]
[403832552,1769574662508,500.0,0.00011013,2]
[403832553,1769574662543,500.0,0.00011013,2]
[403832554,1769574662584,500.0,0.00011013,2]
[403832555,1769574662612,346.24563242,0.00011013,2]
[403832556,1769574662642,500.0,0.00011013,2]
[403832557,1769574662673,500.0,0.00011013,2]
[403832558,1769574662712,328.10043099,0.00011013,2]
[403832559,1769574662736,171.89956901,0.00011013,2]
[403832560,1769574662769,500.0,0.00011013,2]
[403832561,1769574662829,500.0,0.00011013,2]
[403832562,1769574662858,500.0,0.00011013,2]
[403832563,1769574662887,500.0,0.00011013,2]
[403832564,1769574662916,500.0,0.00011013,2]
[403832565,1769574662950,500.0,0.00011013,2]
[403832566,1769574662979,500.0,0.00011013,2]
[403832567,1769574663008,500.0,0.00011013,2]
[403832568,1769574663042,500.0,0.00011013,2]
[403832569,1769574663076,500.0,0.00011013,2]
[403832570,1769574663122,430.60940391,0.00011013,2]
[403832571,1769574663161,500.0,0.00011013,2]
[403832572,1769574663196,500.0,0.00011013,2]
[403832573,1769574663226,500.0,0.00011013,2]
[403832574,1769574663294,500.0,0.00011013,2]
[403832575,1769574663332,500.0,0.00011013,2]
[403832576,1769574663374,500.0,0.00011013,2]
[403832577,1769574663413,500.0,0.00011013,2]
[403832578,1769574663452,500.0,0.00011013,2]
[403832579,1769574663510,397.50102708,0.00011013,2]
[403832580,1769574663537,102.49897292,0.00011013,2]
[403832581,1769574680358,500.0,0.00011013,2]
[403832582,1769574680415,385.37173134,0.00011013,2]
[403832583,1769574690365,9114.63826866,0.00010201,2]
[403832584,1769574690390,885.36173134,0.00010201,2]
[403832585,1769574702094,615.142,0.00010794,2]
[403832586,1769574713457,500.0,0.00034851,120]
[403832587,1769574713701,500.0,0.00034851,120]
[403832589,1769574734503,301.995625,0.00010201,2]
[403832590,1769574755650,174.43032577,0.00010916,2]
[403832592,1769574792711,500.0,0.00034851,120]
[403832593,1769574792965,500.0,0.00034851,120]
[403832594,1769574793222,460.68329822,0.00034851,120]
[403832595,1769574816587,213.88386298,0.00011013,2]
[403832596,1769574819994,500.0,0.00034851,120]
[403832597,1769574820239,500.0,0.00034851,120]
[403832598,1769574821073,500.0,0.00034851,120]
[403832599,1769574821355,500.0,0.00034851,120]
[403832600,1769574823871,500.0,0.00034851,120]
[403832601,1769574824263,500.0,0.00034851,120]
[403832602,1769574824343,187.9,0.00034851,120]
[403832603,1769574839827,527.5870172,0.00010038,2]
[403832604,1769574842028,2110.3480688,0.00010824,2]
[403832605,1769574842947,5000.0,0.00011014,2]
[403832606,1769574851545,171.26136891,0.00011014,2]
[403832607,1769574851568,4828.73863109,0.00011014,2]
[403832608,1769574866697,5000.0,0.00011014,2]
[403832609,1769574870996,-68.77239599,0.00011014,2]
[403832610,1769574871098,-10000.01,0.00011014,2]
[403832611,1769574871222,-10000.01,0.00011014,2]
[403832612,1769574871329,-10000.01,0.00011014,2]
[403832613,1769574871461,-10000.01,0.00011014,2]
[403832614,1769574871587,-10000.01,0.00011014,2]
[403832615,1769574873315,-10000.01,0.00011014,2]
[403832616,1769574873452,-10000.01,0.00011014,2]
[403832617,1769574873595,-10000.01,0.00011014,2]
[403832618,1769574873865,-10000.01,0.00011014,2]
[403832619,1769574876767,-10000.01,0.00011014,2]
[403832620,1769574876876,-10000.01,0.00011014,2]
[403832621,1769574876998,-10000.01,0.00011014,2]
[403832622,1769574877115,-10000.01,0.00011014,2]
[403832623,1769574877457,-10000.01,0.00011014,2]
[403832624,1769574877601,-10000.01,0.00011014,2]
[403832625,1769574942928,-5000.0,0.00010687,2]
[403832626,1769574942962,-0.01,0.00010794,2]
[403832627,1769574946566,500.0,0.00034851,120]
[403832628,1769574946824,500.0,0.00034851,120]
[403832629,1769574948820,-500.99,0.00010794,2]
[403832630,1769574948850,-3998.03,0.00010795,2]
[403832631,1769574948887,-1001.97,0.00010795,2]
[403832632,1769574962104,-613.5354249,9.933e-05,2]
[403832633,1769574965867,-343.77623692,9.834e-05,2]
[403832634,1769574970166,-290.88326416,9.834e-05,2]
[403832635,1769574972984,-342.53254121,9.834e-05,2]
[403832636,1769574973981,-4022.80795771,9.834e-05,2]
[403832637,1769574975126,-186.4645751,9.933e-05,2]
[403832638,1769574975148,-42.34424196,0.00010033,2]
[403832639,1769574977763,-207.70465177,0.00010033,2]
[403832640,1769574992803,-312.56473044,9.933e-05,2]
[403832641,1769574995687,-748.55291992,9.933e-05,2]
[403832642,1769574998412,-832.49549465,9.933e-05,2]
[403832643,1769574998443,-172.05289997,0.00010033,2]
[403832644,1769574998474,-2990.91321076,0.00010794,2]
[403832645,1769574998523,-2009.08678924,0.00010794,2]
[403832646,1769575004218,-5000.0,9.834e-05,2]
[403832647,1769575004253,-0.01,0.00010849,2]
[403832648,1769575022724,-800.0,9.748e-05,2]
[403832649,1769575024418,367.28380367,9.645e-05,2]
[403832650,1769575024441,4632.71619633,9.645e-05,2]
[403832651,1769575082204,-177.13169756,9.733e-05,2]
[403832652,1769575082261,5000.0,9.645e-05,2]
[403832653,1769575093224,-622.86830244,9.733e-05,2]
[403832654,1769575093247,-261.96470452,9.849e-05,2]
[403832655,1769575094263,-538.03529548,9.849e-05,2]
[403832656,1769575094293,-3923.93940904,0.00010633,2]
[403832657,1769575112351,-1076.06059096,0.00010527,2]
[403832658,1769575112381,-1076.06059096,0.00010633,2]
[403832659,1769575112410,-1061.11765036,0.0001074,2]
[403832660,1769575112437,-321.14518565,0.00010849,2]
[403832661,1769575112465,-300.0,0.00010903,2]
[403832662,1769575112493,-174.43032577,0.00010919,2]
[403832663,1769575112522,-500.0,0.00011013,2]
[403832664,1769575112551,-229.53098623,0.00011013,2]
[403832665,1769575112578,-23.31934014,0.00011013,2]
[403832666,1769575118743,-476.68065986,0.00011013,2]
[403832667,1769575118773,-407.57891703,0.00011013,2]
[403832668,1769575118802,-208.98007857,0.00011013,2]
[403832669,1769575119318,1093.23965546,0.00010903,2]
[403832670,1769575127608,3919.90478027,0.00011014,2]
[403832671,1769575163409,500.0,0.00034855,120]
[403832672,1769575163450,-605.8098757,0.00010795,2]
[403832673,1769575163480,-3788.3902486,0.00010904,2]
[403832674,1769575163666,500.0,0.00034855,120]
[403832675,1769575169442,-1211.6097514,0.00010904,2]
[403832676,1769575169472,-300.0,0.00011013,2]
[403832677,1769575180223,500.0,0.00011013,2]
[403832678,1769575180272,500.0,0.00011013,2]
[403832679,1769575180329,620.0,0.00011013,2]
[403832680,1769575181198,5000.0,0.00011014,2]
[403832682,1769575211530,-5000.0,0.00010904,2]
[403832683,1769575217558,-1200.0,0.00011013,2]
[403832684,1769575219261,2460.9054419,0.00010453,2]
[403832685,1769575242723,-5000.0,0.00011014,2]
[403832686,1769575252148,-160.0,9.5e-07,2]
[403832687,1769575252201,-8717.63492826,0.00010904,2]
[403832688,1769575258686,-160.0,9.5e-07,2]
[403832689,1769575258721,-160.0,9.5e-07,2]
[403832690,1769575258756,-160.0,9.5e-07,2]
[403832691,1769575258791,-160.0,9.5e-07,2]
[403832692,1769575258825,-160.0,9.5e-07,2]
[403832693,1769575258855,-160.0,9.5e-07,2]
[403832694,1769575274343,-300.0,0.00010903,2]
[403832695,1769575274379,-9400.01,0.00010904,2]
[403832696,1769575280306,-10000.01,0.00010904,2]
[403832697,1769575298978,-10000.01,0.00010904,2]
[403832698,1769575299184,-10000.01,0.00010904,2]
[403832699,1769575299285,-10000.01,0.00010904,2]
[403832700,1769575299407,-10000.01,0.00010904,2]
[403832701,1769575305093,-492.114,0.00010794,2]
[403832702,1769575305128,-9015.782,0.00010904,2]
[403832703,1769575305191,-10000.01,0.00010904,2]
[403832704,1769575305299,-10000.01,0.00010904,2]
[403832705,1769575305408,-10000.01,0.00010904,2]
[403832706,1769575323959,-800.0,9.731e-05,2]
[403832707,1769575325778,-152.63050372,9.742e-05,2]
[403832708,1769575328809,-220.38479306,9.742e-05,2]
[403832709,1769575339492,-426.98470322,9.742e-05,2]
[403832710,1769575339521,-800.0,9.746e-05,2]
[403832711,1769575339550,-800.0,9.768e-05,2]
[403832712,1769575339579,-800.0,9.781e-05,2]
[403832713,1769575339606,-748.39155096,9.838e-05,2]
[403832714,1769575339634,-800.0,9.878e-05,2]
[403832715,1769575339665,-449.25749164,9.894e-05,2]
[403832716,1769575339778,-350.74250836,9.894e-05,2]
[403832717,1769575345729,-800.0,9.801e-05,2]
[403832718,1769575345758,-800.0,9.9e-05,2]
[403832719,1769575345786,-800.0,9.914e-05,2]